{"text_format":"3","workbook":"xlsx","n_sheets":1,"sheets":["Izveštaj o troškovima"],"not_rendered":{"images":2,"defined_names":12},"read":"whole","date_system":"1900"}

{"sheet":"Izveštaj o troškovima","index":0,"n_rows":24,"n_cols":13,"rows_kept":24,"merged":[[3,2,3,3],[3,5,3,6],[3,9,3,10],[4,2,4,3],[4,5,4,6],[4,9,4,10],[5,2,5,3],[5,5,5,6],[5,9,5,10],[6,2,6,3],[6,5,6,6],[6,9,6,10],[7,9,7,10]]}
[null,"IZVEŠTAJ O TROŠKOVIMA"]
[null,"CONTOSO, d.o.o."]
[null,"123 Južna glavna ulica, Severna Bačka Topola, 12345"]
[null,"TELEFON",4255550121,null,"IME","Mirjana Ralević",null,null,"SVRHA","Godišnji seminar o prodaji",null,"CENA PO KILOMETRU",{"v":50,"d":"50.00 din./ po milji"}]
[null,"FAKS",4255550122,null,"SEKTOR","Prodaja",null,null,"POČETNI",{"$f":"IFERROR(MIN(Troškovi[DATUM]),\"\")","v":"2018-06-04"},null,"CENA OBROKA",{"v":3000,"d":"3,000.00 din./ po danu"}]
[null,"ADRESA E-POŠTE","info@contoso.com",null,"POZICIJA","Generalni direktor",null,null,"ZAVRŠNI",{"$f":"IFERROR(MAX(Troškovi[DATUM]),\"\")","v":"2018-07-04"},null,"CENA HOTELA",{"v":20000,"d":"20,000.00 din./ za noć"}]
[null,"VEB","www.contoso.com",null,"MENADŽER","Sava Jevtić",null,null,"PRIPREMIO/LA","Mirjana Ralević",null,"CENA TELEFONA",{"v":1000,"d":"1,000.00 din./ po danu"}]
[{"$nulls":8},"ODOBRIO/LA","Sava Jevtić",null,"RAZNO STOPA",{"v":5000,"d":"5,000.00 din./ po danu"}]
[]
[null,"DATUM","RAČUN","OPIS","HOTEL","PREVOZ","OBROCI","TELEFON","RAZNO","ODOMETAR \nPOČETAK","ODOMETAR \nKRAJ","KILOMETRAŽA \nUKUPNO","UKUPNO "]
[null,{"$f":"TODAY()","v":"2018-06-04"},"Prodaja","Kilometraža",{"$nulls":4},{"v":5000,"d":"5,000.00 din."},{"v":11378.5,"d":"11,378.5po milji"},{"v":11456.2,"d":"11,456.2po milji"},{"$f":"IF(COUNTA(Troškovi[[#This Row],[ODOMETAR \nPOČETAK]:[ODOMETAR \nKRAJ]])=2,(Troškovi[[#This Row],[ODOMETAR \nKRAJ]]-Troškovi[[#This Row],[ODOMETAR \nPOČETAK]])*CenaPoKilometru,\"\")","v":{"v":3885.0000000000364,"d":"3,885.00 din."}},{"$f":"IF(COUNTA(Troškovi[[#This Row],[DATUM]:[ODOMETAR \nKRAJ]])=0,\"\",SUM(Troškovi[[#This Row],[HOTEL]:[PREVOZ]],Troškovi[[#This Row],[OBROCI]:[RAZNO]],((Troškovi[[#This Row],[ODOMETAR \nKRAJ]]-Troškovi[[#This Row],[ODOMETAR \nPOČETAK]])*(CenaPoKilometru))))","v":{"v":8885.000000000036,"d":"8,885.00 din."}}]
[null,{"$f":"TODAY()+30","v":"2018-07-04"},"Prodaja","Konvencija",{"v":44500,"d":"44,500.00 din."},{"v":22500,"d":"22,500.00 din."},{"v":2000,"d":"2,000.00 din."},null,{"v":500,"d":"500.00 din."},{"v":11500,"d":"11,500.0po milji"},{"v":11560,"d":"11,560.0po milji"},{"$f":"IF(COUNTA(Troškovi[[#This Row],[ODOMETAR \nPOČETAK]:[ODOMETAR \nKRAJ]])=2,(Troškovi[[#This Row],[ODOMETAR \nKRAJ]]-Troškovi[[#This Row],[ODOMETAR \nPOČETAK]])*CenaPoKilometru,\"\")","v":{"v":3000,"d":"3,000.00 din."}},{"$f":"IF(COUNTA(Troškovi[[#This Row],[DATUM]:[ODOMETAR \nKRAJ]])=0,\"\",SUM(Troškovi[[#This Row],[HOTEL]:[PREVOZ]],Troškovi[[#This Row],[OBROCI]:[RAZNO]],((Troškovi[[#This Row],[ODOMETAR \nKRAJ]]-Troškovi[[#This Row],[ODOMETAR \nPOČETAK]])*(CenaPoKilometru))))","v":{"v":72500,"d":"72,500.00 din."}}]
[{"$nulls":11},{"$f":"IF(COUNTA(Troškovi[[#This Row],[ODOMETAR \nPOČETAK]:[ODOMETAR \nKRAJ]])=2,(Troškovi[[#This Row],[ODOMETAR \nKRAJ]]-Troškovi[[#This Row],[ODOMETAR \nPOČETAK]])*CenaPoKilometru,\"\")","v":""},{"$f":"IF(COUNTA(Troškovi[[#This Row],[DATUM]:[ODOMETAR \nKRAJ]])=0,\"\",SUM(Troškovi[[#This Row],[HOTEL]:[PREVOZ]],Troškovi[[#This Row],[OBROCI]:[RAZNO]],((Troškovi[[#This Row],[ODOMETAR \nKRAJ]]-Troškovi[[#This Row],[ODOMETAR \nPOČETAK]])*(CenaPoKilometru))))","v":""}]
[{"$nulls":11},{"$f":"IF(COUNTA(Troškovi[[#This Row],[ODOMETAR \nPOČETAK]:[ODOMETAR \nKRAJ]])=2,(Troškovi[[#This Row],[ODOMETAR \nKRAJ]]-Troškovi[[#This Row],[ODOMETAR \nPOČETAK]])*CenaPoKilometru,\"\")","v":""},{"$f":"IF(COUNTA(Troškovi[[#This Row],[DATUM]:[ODOMETAR \nKRAJ]])=0,\"\",SUM(Troškovi[[#This Row],[HOTEL]:[PREVOZ]],Troškovi[[#This Row],[OBROCI]:[RAZNO]],((Troškovi[[#This Row],[ODOMETAR \nKRAJ]]-Troškovi[[#This Row],[ODOMETAR \nPOČETAK]])*(CenaPoKilometru))))","v":""}]
[{"$nulls":11},{"$f":"IF(COUNTA(Troškovi[[#This Row],[ODOMETAR \nPOČETAK]:[ODOMETAR \nKRAJ]])=2,(Troškovi[[#This Row],[ODOMETAR \nKRAJ]]-Troškovi[[#This Row],[ODOMETAR \nPOČETAK]])*CenaPoKilometru,\"\")","v":""},{"$f":"IF(COUNTA(Troškovi[[#This Row],[DATUM]:[ODOMETAR \nKRAJ]])=0,\"\",SUM(Troškovi[[#This Row],[HOTEL]:[PREVOZ]],Troškovi[[#This Row],[OBROCI]:[RAZNO]],((Troškovi[[#This Row],[ODOMETAR \nKRAJ]]-Troškovi[[#This Row],[ODOMETAR \nPOČETAK]])*(CenaPoKilometru))))","v":""}]
[{"$nulls":11},{"$f":"IF(COUNTA(Troškovi[[#This Row],[ODOMETAR \nPOČETAK]:[ODOMETAR \nKRAJ]])=2,(Troškovi[[#This Row],[ODOMETAR \nKRAJ]]-Troškovi[[#This Row],[ODOMETAR \nPOČETAK]])*CenaPoKilometru,\"\")","v":""},{"$f":"IF(COUNTA(Troškovi[[#This Row],[DATUM]:[ODOMETAR \nKRAJ]])=0,\"\",SUM(Troškovi[[#This Row],[HOTEL]:[PREVOZ]],Troškovi[[#This Row],[OBROCI]:[RAZNO]],((Troškovi[[#This Row],[ODOMETAR \nKRAJ]]-Troškovi[[#This Row],[ODOMETAR \nPOČETAK]])*(CenaPoKilometru))))","v":""}]
[{"$nulls":11},{"$f":"IF(COUNTA(Troškovi[[#This Row],[ODOMETAR \nPOČETAK]:[ODOMETAR \nKRAJ]])=2,(Troškovi[[#This Row],[ODOMETAR \nKRAJ]]-Troškovi[[#This Row],[ODOMETAR \nPOČETAK]])*CenaPoKilometru,\"\")","v":""},{"$f":"IF(COUNTA(Troškovi[[#This Row],[DATUM]:[ODOMETAR \nKRAJ]])=0,\"\",SUM(Troškovi[[#This Row],[HOTEL]:[PREVOZ]],Troškovi[[#This Row],[OBROCI]:[RAZNO]],((Troškovi[[#This Row],[ODOMETAR \nKRAJ]]-Troškovi[[#This Row],[ODOMETAR \nPOČETAK]])*(CenaPoKilometru))))","v":""}]
[{"$nulls":11},{"$f":"IF(COUNTA(Troškovi[[#This Row],[ODOMETAR \nPOČETAK]:[ODOMETAR \nKRAJ]])=2,(Troškovi[[#This Row],[ODOMETAR \nKRAJ]]-Troškovi[[#This Row],[ODOMETAR \nPOČETAK]])*CenaPoKilometru,\"\")","v":""},{"$f":"IF(COUNTA(Troškovi[[#This Row],[DATUM]:[ODOMETAR \nKRAJ]])=0,\"\",SUM(Troškovi[[#This Row],[HOTEL]:[PREVOZ]],Troškovi[[#This Row],[OBROCI]:[RAZNO]],((Troškovi[[#This Row],[ODOMETAR \nKRAJ]]-Troškovi[[#This Row],[ODOMETAR \nPOČETAK]])*(CenaPoKilometru))))","v":""}]
[{"$nulls":11},{"$f":"IF(COUNTA(Troškovi[[#This Row],[ODOMETAR \nPOČETAK]:[ODOMETAR \nKRAJ]])=2,(Troškovi[[#This Row],[ODOMETAR \nKRAJ]]-Troškovi[[#This Row],[ODOMETAR \nPOČETAK]])*CenaPoKilometru,\"\")","v":""},{"$f":"IF(COUNTA(Troškovi[[#This Row],[DATUM]:[ODOMETAR \nKRAJ]])=0,\"\",SUM(Troškovi[[#This Row],[HOTEL]:[PREVOZ]],Troškovi[[#This Row],[OBROCI]:[RAZNO]],((Troškovi[[#This Row],[ODOMETAR \nKRAJ]]-Troškovi[[#This Row],[ODOMETAR \nPOČETAK]])*(CenaPoKilometru))))","v":""}]
[{"$nulls":11},{"$f":"IF(COUNTA(Troškovi[[#This Row],[ODOMETAR \nPOČETAK]:[ODOMETAR \nKRAJ]])=2,(Troškovi[[#This Row],[ODOMETAR \nKRAJ]]-Troškovi[[#This Row],[ODOMETAR \nPOČETAK]])*CenaPoKilometru,\"\")","v":""},{"$f":"IF(COUNTA(Troškovi[[#This Row],[DATUM]:[ODOMETAR \nKRAJ]])=0,\"\",SUM(Troškovi[[#This Row],[HOTEL]:[PREVOZ]],Troškovi[[#This Row],[OBROCI]:[RAZNO]],((Troškovi[[#This Row],[ODOMETAR \nKRAJ]]-Troškovi[[#This Row],[ODOMETAR \nPOČETAK]])*(CenaPoKilometru))))","v":""}]
[{"$nulls":11},{"$f":"IF(COUNTA(Troškovi[[#This Row],[ODOMETAR \nPOČETAK]:[ODOMETAR \nKRAJ]])=2,(Troškovi[[#This Row],[ODOMETAR \nKRAJ]]-Troškovi[[#This Row],[ODOMETAR \nPOČETAK]])*CenaPoKilometru,\"\")","v":""},{"$f":"IF(COUNTA(Troškovi[[#This Row],[DATUM]:[ODOMETAR \nKRAJ]])=0,\"\",SUM(Troškovi[[#This Row],[HOTEL]:[PREVOZ]],Troškovi[[#This Row],[OBROCI]:[RAZNO]],((Troškovi[[#This Row],[ODOMETAR \nKRAJ]]-Troškovi[[#This Row],[ODOMETAR \nPOČETAK]])*(CenaPoKilometru))))","v":""}]
[null,"UKUPNE VREDNOSTI",null,null,{"$f":"SUBTOTAL(109,Troškovi[HOTEL])","v":{"v":44500,"d":"44,500.00 din."}},{"$f":"SUBTOTAL(109,Troškovi[PREVOZ])","v":{"v":22500,"d":"22,500.00 din."}},{"$f":"SUBTOTAL(109,Troškovi[OBROCI])","v":{"v":2000,"d":"2,000.00 din."}},{"$f":"SUBTOTAL(109,Troškovi[TELEFON])","v":0},{"$f":"SUBTOTAL(109,Troškovi[RAZNO])","v":{"v":5500,"d":"5,500.00 din."}},{"$nulls":3},{"$f":"SUBTOTAL(109,Troškovi[[UKUPNO ]])","v":{"v":81385.00000000003,"d":"81,385.00 din."}}]
[{"$nulls":11},"AVANSNE_UPLATE",{"v":0,"d":"0.00 din."}]
[{"$nulls":11},"UKUPNO",{"$f":"Troškovi[[#Totals],[UKUPNO ]]-Avansne_uplate","v":{"v":81385.00000000003,"d":"81,385.00 din."}}]